[Event "Croatian 1A League 2022"]
[Site "Porec"]
[Date "2022.09.24"]
[Round "1.20"]
[White "Bernadskiy, Vitaliy"]
[Black "Saric, Ibro"]
[Result "1-0"]
[ECO "D37"]
[WhiteElo "2558"]
[BlackElo "2542"]
[Annotator "TA"]
[PlyCount "81"]
[EventDate "2022.09.24"]
[EventType "team-tourn"]
[EventCountry "CRO"]
[SourceTitle "playchess.com"]
[Source "ChessBase"]
[SourceQuality "1"]
[TimeControl "40/5400+30:1800+30"]

{[%evp 13,81,2,4,0,0,0,3,-7,16,14,15,17,17,12,17,6,5,8,14,7,8,2,8,12,12,14,14,10,6,0,0,0,0,0,79,60,67,67,95,95,95,95,87,95,106,83,184,158,160,164,145,116,229,179,268,258,291,239,379,371,371,364,955,949,1064,1041,1302,1302,1110,917]} 1. d4 {[%emt 0:02:00]} Nf6 {[%emt 0:01:00]} 2. c4 {[%emt 0:00:00]} e6 {[%emt 0:00:30]} 3. Nf3 {[%emt 0:00:00]} d5 {[%emt 0:02:30]} 4. Nc3 {[%emt 0:00:30]} Be7 {[%emt 0:00:30]} 5. Bf4 {[%emt 0:00:30]} O-O {[%emt 0:01:30]} 6. e3 {[%emt 0:00:00]} Nbd7 {[%emt 0:01:30]} 7. cxd5 {[%emt 0:01:00]} Nxd5 {[%emt 0:06:30]} 8. Nxd5 {[%emt 0:00:30] D37: Queen's Gambit Declined: 5 Bf4.} exd5 {[%emt 0:00:30]} 9. Bd3 {[%emt 0:00:30]} c5 {[%emt 0:01:30]} 10. dxc5 {[%emt 0:07:30] The position is equal.} Nxc5 {[%emt 0:01:30]} 11. O-O {[%emt 0:04:30]} Bg4 {[%emt 0:04:30]} 12. Be2 {[%emt 0:06:30]} Bf6 {[%emt 0:06:30]} 13. h3 {[%emt 0:07:30]} Bh5 {[%emt 0:08:30]} (13... Bxf3 14. Bxf3 d4 15. exd4 Bxd4 16. Qd2 $14) 14. Ne5 {[%emt 0:07:30]} Bxe2 {[%emt 0:08:30]} 15. Qxe2 {[%emt 0:00:30] [#]} Re8 $146 {[%emt 0:01:30]} ({Predecessor:} 15... Qb6 16. Rfd1 Rad8 17. Rac1 Ne6 18. Bg3 d4 19. Ng4 Be7 20. exd4 Rxd4 21. Rxd4 Qxd4 {1-0 (47) Zhao,X (2486)-Tan,Z (2510) Chess.com INT 2020}) 16. Ng4 {[%emt 0:03:30]} d4 {[%emt 0:12:30]} 17. Qb5 {[%emt 0:07:30]} Be7 {[%emt 0:03:30]} 18. Rad1 {[%emt 0:04:30]} a6 {[%emt 0:09:30]} 19. Qc4 {[%emt 0:10:30]} Ne6 {[%emt 0:02:30]} 20. Be5 {[%emt 0:02:30]} Rc8 {[%emt 0:02:30]} 21. Qa4 {[%emt 0:01:30][%cal Re3d4]} h5 {[%emt 0:03:57]} 22. Nh2 {[%emt 0:01:30][%cal Re5d4,Bg4h2,Bh2f3,Bf3g5][%mdl 32]} b5 {[%emt 0:05:11]} 23. Qxa6 {[%emt 0:11:30][%cal Re5d4] Threatens to win with Bxd4.} d3 {[%emt 0:01:52]} (23... Qd5 $1 $11 24. Bxd4 (24. exd4 f6 $17) 24... Ra8) 24. Nf3 $16 {[%emt 0:01:44] White is more active.} ({Not} 24. Qxb5 Rc5 25. Qxd3 Qxd3 26. Rxd3 Rxe5 $17) 24... Qd5 {[%emt 0:03:18]} 25. a4 $1 {[%emt 0:01:13]} Ng5 {[%emt 0:06:25]} 26. Nxg5 {[%emt 0:00:57] [#] And now Nf3 would win.} (26. Qxb5 $6 Nxf3+ 27. gxf3 Qxf3 28. Rxd3 Bc5 $15) 26... Qxe5 {[%emt 0:00:52]} 27. Nf3 {[%emt 0:00:06]} Qxb2 {[%emt 0:00:14]} 28. Rb1 {[%emt 0:01:58][%cal Bd1b1,Bb1b8,Bb8b5,Bb5d5,Bd5d7][%mdl 32]} Qa3 {[%emt 0:02:04]} 29. Qxb5 {[%emt 0:01:49]} ({Reject} 29. Rxb5 $6 Red8 $11) 29... Rb8 {[%emt 0:01:45]} (29... Red8 $16 {was worth a try.}) 30. Qxb8 {[%emt 0:02:49]} Rxb8 {[%emt 0:00:07]} 31. Rxb8+ {[%emt 0:00:03]} Kh7 {[%emt 0:00:10]} 32. Rb5 {[%emt 0:00:04]} g6 {[%emt 0:01:27]} (32... Bb4 $16 33. Rxh5+ Kg6) 33. Rd5 {[%emt 0:00:07] aiming for a5.} Bf6 {[%emt 0:01:17]} (33... Qxa4 {might work better.} 34. Rxd3 Kg7) 34. a5 $18 {[%emt 0:00:49][%cal Ba4a5,Ba5a6,Ba6a7][%mdl 32]} Qb3 {[%emt 0:00:45]} 35. Rd7 {[%emt 0:00:24] Black must now prevent a6.} Kg7 {[%emt 0:00:16]} (35... Qa2 $142 36. e4 (36. Rxd3 Qxa5 37. Rd7 Kg7 $18) 36... Bc3 37. Rxd3 Qxa5) 36. a6 {[%emt 0:00:10]} Qa4 {[%emt 0:00:24]} 37. a7 {[%emt 0:00:08]} g5 $2 {[%emt 0:00:40]} (37... d2 38. Nxd2 Qxd7) 38. Nd2 {[%emt 0:01:05] White is clearly winning.} g4 {[%emt 0:00:39]} 39. hxg4 {[%emt 0:00:22]} hxg4 {[%emt 0:00:06]} 40. g3 {[%emt 0:00:00]} Bc3 {[%emt 0:00:00] [#]} 41. Nc4 $1 {[%emt 0:01:12][%mdl 512] Weighted Error Value: White=0.08 (flawless) /Black=0.27 (precise)} 1-0

[Event "Croatian 1A League 2022"]
[Site "Porec"]
[Date "2022.09.24"]
[Round "1.21"]
[White "Saric, Ante"]
[Black "Lalic, Bogdan"]
[Result "1/2-1/2"]
[ECO "D78"]
[WhiteElo "2510"]
[BlackElo "2393"]
[Annotator "TA"]
[PlyCount "45"]
[EventDate "2022.09.24"]
[EventType "team-tourn"]
[EventCountry "CRO"]
[SourceTitle "playchess.com"]
[Source "ChessBase"]
[SourceQuality "1"]
[TimeControl "40/5400+30:1800+30"]

{[%evp 18,45,28,25,17,16,16,22,16,8,12,7,15,21,37,16,19,16,17,10,11,14,30,22,22,22,18,16,30,22]} 1. c4 {[%emt 0:01:00]} Nf6 {[%emt 0:05:00]} 2. g3 {[%emt 0:00:00]} c6 {[%emt 0:00:30]} 3. Nf3 {[%emt 0:00:00]} d5 {[%emt 0:00:00]} 4. Bg2 {[%emt 0:00:30]} g6 {[%emt 0:00:00]} 5. b3 {[%emt 0:01:30]} Bg7 {[%emt 0:00:30]} 6. Bb2 {[%emt 0:00:30]} O-O {[%emt 0:00:30]} 7. O-O {[%emt 0:00:30]} a5 {[%emt 0:01:30]} 8. Nc3 {[%emt 0:05:30]} Ne4 {[%emt 0:01:30]} 9. d4 {[%emt 0:03:30]} Bf5 {[%emt 0:03:30]} 10. e3 {[%emt 0:03:30]} Nxc3 {[%emt 0:02:30] D78: Fianchetto Grünfeld: 6 0-0 c6.} 11. Bxc3 {[%emt 0:00:30]} Be4 {[%emt 0:00:30]} 12. Qe2 {[%emt 0:01:30]} e6 {[%emt 0:00:30] The position is equal.} 13. Rfc1 {[%emt 0:04:30]} Nd7 {[%emt 0:02:30]} 14. Bf1 {[%emt 0:00:30]} Bxf3 {[%emt 0:00:30]} 15. Qxf3 {[%emt 0:00:00]} f5 {[%emt 0:01:30] [#]} 16. Rab1 $146 {[%emt 0:08:00]} ({Predecessor:} 16. cxd5 exd5 17. b4 axb4 18. Bxb4 Rf7 19. a4 Nf6 20. a5 Qe8 21. Qe2 h5 22. a6 {½-½ (30) Fressinet,L (2676)-Feller,S (2573) Germany 2017}) 16... Rf7 {[%emt 0:01:30]} 17. Qe2 {[%emt 0:05:30]} Bf8 {[%emt 0:02:30]} 18. b4 {[%emt 0:03:30]} axb4 {[%emt 0:01:30]} 19. Bxb4 {[%emt 0:00:30]} Bxb4 {[%emt 0:02:30]} 20. Rxb4 {[%emt 0:00:30]} Nf6 {[%emt 0:04:30]} 21. Qb2 {[%emt 0:06:30]} Qe7 {[%emt 0:01:30]} 22. Rb1 {[%emt 0:03:30]} Ra7 {[%emt 0:00:30]} 23. Qc2 {[%emt 0:11:30] Not much happened in this game.  Weighted Error Value: White=0.05 (flawless) /Black=0.04 (flawless)} 1/2-1/2

[Event "Croatian 1A League 2022"]
[Site "Porec"]
[Date "2022.09.24"]
[Round "1.22"]
[White "Zaja, Ivan"]
[Black "Plenca, Julijan"]
[Result "1-0"]
[ECO "A85"]
[WhiteElo "2417"]
[BlackElo "2447"]
[Annotator "TA"]
[PlyCount "49"]
[EventDate "2022.09.24"]
[EventType "team-tourn"]
[EventCountry "CRO"]
[SourceTitle "playchess.com"]
[Source "ChessBase"]
[SourceQuality "1"]
[TimeControl "40/5400+30:1800+30"]

{[%evp 15,49,10,39,15,23,18,40,0,0,0,0,0,41,41,112,110,156,157,161,172,193,177,186,197,212,208,259,197,254,252,322,314,376,194,348,323]} 1. d4 {[%emt 0:01:00]} f5 {[%emt 0:00:00]} 2. c4 {[%emt 0:00:00]} Nf6 {[%emt 0:00:30]} 3. Nc3 {[%emt 0:00:00]} e6 {[%emt 0:00:30]} 4. Nf3 {[%emt 0:00:30]} Bb4 {[%emt 0:00:30]} 5. g3 {[%emt 0:00:30]} O-O {[%emt 0:00:30]} 6. Bg2 {[%emt 0:00:30]} Bxc3+ {[%emt 0:00:30]} 7. bxc3 {[%emt 0:00:30]} d6 {[%emt 0:00:30]} 8. O-O {[%emt 0:00:30]} Qe7 {[%emt 0:00:30]} 9. a4 {[%emt 0:00:30][%cal Ba2a4,Ba4a5,Ba5a6][%mdl 32] [#] A85: Dutch Defence: 2 c4 Nf6 3 Nc3.} Nc6 $146 {[%emt 0:00:30]} ({Predecessor:} 9... a5 10. Qc2 Na6 11. Ba3 Rb8 12. Rab1 Qe8 13. c5 dxc5 14. dxc5 Bd7 15. c6 Bxc6 16. Bxf8 Kxf8 {1-0 (55) Umansky,M (2415)-Rychagov,A (2551) Dos Hermanas 2003}) 10. a5 {[%emt 0:00:30][%cal Oa5a6]} Bd7 {[%emt 0:00:30]} 11. d5 {[%emt 0:00:30] White is slightly better.} Nd8 {[%emt 0:00:30]} 12. a6 {[%emt 0:00:30]} e5 {[%emt 1:03:30]} 13. c5 $1 {[%emt 1:24:17][%cal Bc4c5,Bc5c6][%mdl 32]} b6 {[%emt 0:00:30]} 14. c6 {[%emt 0:00:30]} Be8 {[%emt 0:00:30] [#]} (14... Bc8 $1 $14) 15. Nh4 $1 $36 {[%emt 0:00:30][%mdl 2048] White is on the roll.} g6 {[%emt 0:00:30]} ({Better is} 15... Bg6) 16. Bh6 {[%emt 0:00:30] White is more active.} Rf7 {[%emt 0:01:30]} 17. Qd2 {[%emt 0:00:30]} Nh5 {[%emt 0:00:30]} 18. Bg5 {[%emt 0:00:30] This bishop pair is nice.} Qf8 {[%emt 0:00:30]} 19. Bh3 {[%emt 0:00:30]} Nf6 {[%emt 0:00:30]} 20. f3 {[%emt 0:00:30] Prevents Ne4.} Kh8 {[%emt 0:01:30]} 21. c4 {[%emt 0:00:30][%cal Oe2e4]} Ng8 {[%emt 0:00:30]} (21... Nh5 {keeps fighting.} 22. Bh6 Qe7) 22. e4 $18 {[%emt 0:00:30]} f4 {[%emt 0:00:30]} 23. gxf4 {[%emt 0:00:30]} exf4 {[%emt 0:00:30]} 24. Qc3+ {[%emt 0:00:30]} (24. Ng2 $142) 24... Rg7 $2 {[%emt 0:00:30] [#]} (24... Qg7 25. Qxg7+ Rxg7) 25. Ng2 $1 {[%emt 0:00:00] Weighted Error Value: White=0.24 (precise) /Black=0.44} 1-0

[Event "Croatian 1A League 2022"]
[Site "Porec"]
[Date "2022.09.24"]
[Round "1.24"]
[White "Loncar, Robert"]
[Black "Cotic, Borna"]
[Result "1/2-1/2"]
[ECO "A14"]
[WhiteElo "2367"]
[BlackElo "2133"]
[Annotator "TA"]
[PlyCount "75"]
[EventDate "2022.09.24"]
[EventType "team-tourn"]
[EventCountry "CRO"]
[SourceTitle "playchess.com"]
[Source "ChessBase"]
[SourceQuality "1"]
[TimeControl "40/5400+30:1800+30"]

{[%evp 11,75,10,10,3,10,5,29,29,16,36,37,22,21,30,31,26,41,30,53,39,52,39,54,54,51,52,51,36,36,41,38,30,38,-12,-11,-11,-7,-11,-8,-18,0,0,0,0,-9,-69,-35,-79,-12,-53,0,0,0,-16,0,0,0,-16,0,0,0,-70,0,0,0,0]} 1. Nf3 {[%emt 0:05:00]} Nf6 {[%emt 0:01:00]} 2. c4 {[%emt 0:00:00]} e6 {[%emt 0:00:30]} 3. g3 {[%emt 0:00:00]} d5 {[%emt 0:00:30]} 4. Bg2 {[%emt 0:00:30]} Be7 {[%emt 0:00:30]} 5. O-O {[%emt 0:00:00]} O-O {[%emt 0:00:30]} 6. d3 {[%emt 0:00:00]} c5 {[%emt 0:04:30]} 7. cxd5 {[%emt 0:05:30] A14: English Opening: 1...e6 with b3 by White.} exd5 {[%emt 0:04:30]} 8. d4 $1 {[%emt 0:00:30] The main line 8.d4 scores better than 8.Nc3.} cxd4 {[%emt 0:06:30]} 9. Nxd4 {[%emt 0:00:30] White has an edge.} Nc6 {[%emt 0:00:30]} 10. Nc3 {[%emt 0:04:30]} h6 {[%emt 0:18:30]} 11. b3 {[%emt 0:09:30]} Qa5 {[%emt 0:10:30]} 12. Bb2 {[%emt 0:16:30]} Rd8 {[%emt 0:08:30] [#]} 13. a3 $146 {[%emt 0:08:30]} ({Predecessor:} 13. Rc1 Nxd4 14. Qxd4 Be6 15. e3 Ne8 16. a3 Bf6 17. Qd3 d4 18. Ne4 dxe3 19. Nxf6+ Nxf6 20. Qxe3 {½-½ (27) Pilgram,K (2066)-Jarabinsky,M (2212) LSS email 2017}) 13... Nxd4 {[%emt 0:07:30]} 14. Qxd4 {[%emt 0:00:30]} Be6 {[%emt 0:00:30]} 15. e3 {[%emt 0:15:30]} Rac8 {[%emt 0:04:30]} 16. Rfc1 {[%emt 0:02:30]} Qb6 {[%emt 0:20:16]} 17. Qxb6 {[%emt 0:08:30]} axb6 {[%emt 0:00:01]} 18. Nb5 {[%emt 0:05:39]} Ne4 {[%emt 0:01:30]} 19. Rxc8 {[%emt 0:05:49]} Rxc8 {[%emt 0:00:10]} 20. Rc1 {[%emt 0:00:33]} Rc5 {[%emt 0:05:38]} 21. Nd4 {[%emt 0:05:44]} Bf6 {[%emt 0:00:37]} 22. Nxe6 {[%emt 0:05:09]} (22. Bf3 $14) 22... fxe6 $11 {[%emt 0:02:14]} 23. Rxc5 {[%emt 0:00:23]} bxc5 {[%emt 0:00:26]} 24. Bxf6 {[%emt 0:00:25]} Nxf6 $14 {[%emt 0:00:08][%mdl 4096] Endgame KB-KN} 25. Kf1 {[%emt 0:00:44]} e5 {[%emt 0:00:50]} 26. Ke2 {[%emt 0:00:27]} Kf7 {[%emt 0:00:15]} 27. h3 {[%emt 0:00:39]} Ke6 {[%emt 0:00:10]} 28. f4 {[%emt 0:00:21]} (28. b4 $11) 28... b6 {[%emt 0:00:36]} 29. Kd3 {[%emt 0:00:16]} Kd6 {[%emt 0:00:36]} (29... e4+ $17 30. Kd2 Kd6) 30. Bf1 {[%emt 0:00:48]} exf4 {[%emt 0:02:25]} ({Black should play} 30... e4+ $15 31. Kd2 Nh5) 31. gxf4 $11 {[%emt 0:00:09]} g5 {[%emt 0:00:22]} 32. Bg2 {[%emt 0:00:45]} Nh5 {[%emt 0:00:36]} 33. Bf3 {[%emt 0:00:19]} Nf6 {[%emt 0:00:10]} 34. Bg2 {[%emt 0:00:22]} Nh5 {[%emt 0:00:20]} 35. Bf3 {[%emt 0:00:01]} Nf6 {[%emt 0:00:06]} ({Black should try} 35... Ng3 $11) 36. Bg2 $15 {[%emt 0:00:04]} Ke6 {[%emt 0:01:27]} (36... g4 $15) 37. b4 $11 {[%emt 0:00:52]} cxb4 {[%emt 0:00:24]} 38. axb4 {[%emt 0:00:00] Weighted Error Value: White=0.12 (very precise) /Black=0.13 (very precise)} 1/2-1/2

[Event "Croatian 1A League 2022"]
[Site "Porec"]
[Date "2022.09.24"]
[Round "1.25"]
[White "Kozul, Zdenko"]
[Black "Kaczur, Florian"]
[Result "1-0"]
[ECO "D43"]
[WhiteElo "2549"]
[BlackElo "2483"]
[Annotator "TA"]
[PlyCount "62"]
[EventDate "2022.09.24"]
[EventType "team-tourn"]
[EventCountry "CRO"]
[SourceTitle "playchess.com"]
[Source "ChessBase"]
[SourceQuality "1"]
[TimeControl "40/5400+30:1800+30"]

{[%evp 13,62,7,15,10,14,9,12,0,0,0,0,-31,-38,-24,-25,-28,-16,-20,-16,-37,-33,-56,-59,-50,-58,-79,-51,-76,-46,-40,19,11,19,8,22,14,65,58,56,66,87,84,110,111,108,106,139,135,141,125,137]} 1. d4 {[%emt 0:01:00]} Nf6 {[%emt 0:01:00]} 2. c4 {[%emt 0:00:00]} e6 {[%emt 0:00:30]} 3. Nf3 {[%emt 0:01:00]} d5 {[%emt 0:00:30]} 4. Bg5 {[%emt 0:00:30]} h6 {[%emt 0:02:30]} 5. Bxf6 {[%emt 0:00:30]} Qxf6 {[%emt 0:00:30]} 6. e3 {[%emt 0:00:30]} g6 {[%emt 0:00:30]} 7. Nc3 {[%emt 0:00:30]} c6 {[%emt 0:00:30]} 8. Ne5 {[%emt 0:00:30] D43: Semi-Slav: 5 Bg5 h6.} Nd7 {[%emt 0:00:30]} 9. f4 {[%emt 0:00:30]} g5 {[%emt 0:00:30] [#]} 10. g3 $146 {[%emt 0:00:30] The position is equal.} ({Predecessor:} 10. Qd2 gxf4 11. exf4 Nxe5 12. dxe5 Qe7 13. Be2 Bd7 14. Rc1 Bg7 15. O-O O-O 16. Bg4 {½-½ (27) Siigur,J (2440)-Poli,G (2474) ICCF email 2017}) 10... gxf4 {[%emt 0:00:30]} 11. exf4 {[%emt 0:00:30]} h5 {[%emt 0:00:30]} 12. Qf3 {[%emt 0:00:30]} Nxe5 {[%emt 0:00:30]} 13. dxe5 {[%emt 0:00:30]} Qe7 {[%emt 0:00:30]} 14. O-O-O {[%emt 0:00:30]} Bd7 {[%emt 0:00:30]} 15. h4 {[%emt 0:00:30]} O-O-O {[%emt 0:00:30]} 16. Bh3 {[%emt 0:00:30]} Qc5 {[%emt 0:00:30]} (16... Qb4 {feels hotter.} 17. Qd3 Kc7 18. Bg2 Be7) 17. cxd5 {[%emt 0:00:30]} cxd5 {[%emt 0:00:30] [#] aiming for ...d4.} 18. Kb1 {[%emt 0:00:30]} Kb8 {[%emt 0:00:30]} 19. Ne2 {[%emt 0:00:30]} Qb6 {[%emt 0:00:30]} 20. f5 {[%emt 0:00:30]} exf5 {[%emt 0:00:30]} 21. Bxf5 {[%emt 0:00:30]} Bc6 {[%emt 0:00:30]} (21... Bg7 $15) 22. Nd4 $11 {[%emt 0:00:30]} Bg7 {[%emt 0:00:30]} 23. Rhe1 {[%emt 0:00:30]} Rhe8 {[%emt 0:00:30]} 24. Nxc6+ {[%emt 0:00:30]} Qxc6 {[%emt 0:00:30]} (24... bxc6 $11 25. Qxh5 Bxe5) 25. Qxh5 $14 {[%emt 0:00:30]} Qc7 {[%emt 0:00:30]} 26. Rc1 {[%emt 0:00:30][%cal Bd1c1,Bc1c3,Bc3e3][%mdl 32]} Qe7 {[%emt 0:00:30]} 27. Rc3 {[%emt 0:00:30]} Bxe5 {[%emt 0:00:30]} 28. Rce3 {[%emt 0:00:30] White has more active pieces.} f6 {[%emt 0:00:30]} 29. Qd1 {[%emt 0:00:30]} Rh8 {[%emt 0:00:30] [#]} 30. h5 $1 {[%emt 0:00:30]} Rd6 {[%emt 0:00:30]} 31. g4 {[%emt 0:00:30]} Qg7 {[%emt 0:00:30] Weighted Error Value: White=0.08 (flawless) /Black=0.12 (very precise)} 1-0

[Event "Croatian 1A League 2022"]
[Site "Porec"]
[Date "2022.09.24"]
[Round "1.26"]
[White "Janzelj, Tim"]
[Black "Stevic, Hrvoje"]
[Result "1/2-1/2"]
[ECO "D26"]
[WhiteElo "2456"]
[BlackElo "2565"]
[Annotator "TA"]
[PlyCount "23"]
[EventDate "2022.09.24"]
[EventType "team-tourn"]
[EventCountry "CRO"]
[SourceTitle "playchess.com"]
[Source "ChessBase"]
[SourceQuality "1"]
[TimeControl "40/5400+30:1800+30"]

{[%evp 15,23,17,13,14,25,12,19,15,18,14]} 1. d4 {[%emt 0:01:00]} d5 {[%emt 0:01:00]} 2. c4 {[%emt 0:00:00]} dxc4 {[%emt 0:00:00]} 3. e3 {[%emt 0:00:00]} Nf6 {[%emt 0:00:00]} 4. Bxc4 {[%emt 0:00:30]} e6 {[%emt 0:00:30]} 5. Nf3 {[%emt 0:00:00]} c5 {[%emt 0:00:30]} 6. O-O {[%emt 0:01:00]} Nc6 {[%emt 0:17:30]} 7. dxc5 {[%emt 0:11:30]} Qxd1 {[%emt 0:01:30]} 8. Rxd1 {[%emt 0:00:30]} Bxc5 {[%emt 0:00:30]} 9. a3 {[%emt 0:00:30] D26: Queen's Gambit Accepted: 4 e3 e6 5 Bxc5 c5 sidelines.} O-O {[%emt 0:00:30]} 10. b4 {[%emt 0:00:30]} Be7 {[%emt 0:00:30]} 11. Nbd2 {[%emt 0:00:30] [#]} Rd8 $146 {[%emt 0:00:30]} ({Predecessor:} 11... b6 12. Bb2 Bb7 13. Be2 Rfd8 14. g3 Rac8 15. Rac1 Ne8 16. Rc2 Ne5 17. Rxc8 Nxf3+ 18. Nxf3 Rxc8 {½-½ (24) Nicholls,M (2244)-Rasmussen,E (2331) ICCF email 2010}) 12. Bb2 {[%emt 0:00:30] Not much happened in this game.  Weighted Error Value: White=0.06 (flawless) /Black=0.03 (flawless)} 1/2-1/2

[Event "Croatian 1A League 2022"]
[Site "Porec"]
[Date "2022.09.24"]
[Round "1.27"]
[White "Palac, Mladen"]
[Black "Ivekovic, Bozidar"]
[Result "1/2-1/2"]
[ECO "B67"]
[WhiteElo "2516"]
[BlackElo "2407"]
[Annotator "TA"]
[PlyCount "39"]
[EventDate "2022.09.24"]
[EventType "team-tourn"]
[EventCountry "CRO"]
[SourceTitle "playchess.com"]
[Source "ChessBase"]
[SourceQuality "1"]
[TimeControl "40/5400+30:1800+30"]

{[%evp 21,39,27,23,0,29,22,25,23,20,20,37,50,74,0,22,33,37,0,49,22]} 1. e4 {[%emt 0:01:00]} c5 {[%emt 0:01:00]} 2. Nf3 {[%emt 0:00:00]} d6 {[%emt 0:00:00]} 3. d4 {[%emt 0:00:00]} cxd4 {[%emt 0:00:00]} 4. Nxd4 {[%emt 0:00:00]} Nf6 {[%emt 0:00:00]} 5. Nc3 {[%emt 0:00:00]} Nc6 {[%emt 0:00:00]} 6. Bg5 {[%emt 0:00:00]} e6 {[%emt 0:00:30]} 7. Qd2 {[%emt 0:00:00]} a6 {[%emt 0:00:00]} 8. O-O-O {[%emt 0:00:00]} Bd7 {[%emt 0:00:00]} 9. Kb1 {[%emt 0:00:00]} b5 {[%emt 0:03:30]} 10. Nxc6 {[%emt 0:01:30]} Bxc6 {[%emt 0:00:30]} 11. f3 {[%emt 0:00:00]} Be7 {[%emt 0:06:30]} 12. Bd3 {[%emt 0:03:00] B67: Sicilian: Richter-Rauzer: 7...a6 8 0-0-0 Bd7, lines without 9 f4 Be7.} Rc8 {[%emt 0:04:30]} 13. h4 {[%emt 0:05:30]} h6 {[%emt 0:00:30]} 14. Be3 {[%emt 0:00:30] White has an edge.} h5 {[%emt 0:00:30] Prevents g4.} 15. Bg5 {[%emt 0:00:30]} Qb6 {[%emt 0:00:30]} 16. Ne2 {[%emt 0:00:30]} b4 {[%emt 0:00:30] [#]} 17. c4 $146 {[%emt 0:00:30]} (17. Be3 $16 Qa5 18. Bg5) ({Predecessor:} 17. Be3 Qb7 18. Nd4 Nd7 19. Qe2 Ra8 20. Bg5 Qb6 21. Bc4 Ne5 22. Bb3 Bd7 23. f4 {0-1 (57) Kuybokarov,T (2583)-Rohit,K (2358) Dubai 2022}) 17... bxc3 {[%emt 0:00:30]} 18. Nxc3 {[%emt 0:00:30]} Rb8 {[%emt 0:00:30]} 19. Qe2 {[%emt 0:00:30]} a5 {[%emt 0:00:30]} (19... O-O $11) 20. Rd2 {[%emt 0:00:30] Weighted Error Value: White=0.19 (very precise) /Black=0.16 (very precise)} 1/2-1/2

[Event "Croatian 1A League 2022"]
[Site "Porec"]
[Date "2022.09.24"]
[Round "1.28"]
[White "Ostovic, Matija"]
[Black "Petkov, Vladimir"]
[Result "1/2-1/2"]
[ECO "C50"]
[WhiteElo "2386"]
[BlackElo "2451"]
[Annotator "TA"]
[PlyCount "51"]
[EventDate "2022.09.24"]
[EventType "team-tourn"]
[EventCountry "CRO"]
[SourceTitle "playchess.com"]
[Source "ChessBase"]
[SourceQuality "1"]
[TimeControl "40/5400+30:1800+30"]

{[%evp 10,51,12,8,15,0,3,0,0,0,-6,-14,0,0,0,-12,23,19,52,50,43,31,41,37,52,0,0,0,0,0,0,0,77,76,67,81,89,75,83,74,85,77,412,0]} 1. e4 {[%emt 0:02:00]} e5 {[%emt 0:01:00]} 2. Nf3 {[%emt 0:00:00]} Nc6 {[%emt 0:00:30]} 3. Bc4 {[%emt 0:00:00]} Bc5 {[%emt 0:00:30]} 4. d3 {[%emt 0:00:30]} Nf6 {[%emt 0:00:30]} 5. Nc3 {[%emt 0:01:30]} h6 {[%emt 0:00:30]} 6. h3 {[%emt 0:01:30]} a6 {[%emt 0:02:30] C50: Hungarian Defence and Giuoco Pianissimo.} 7. Be3 $1 {[%emt 0:07:30][%mdl 4] 7.Be3 is a critical line.} d6 {[%emt 0:03:30]} 8. Nd5 {[%emt 0:09:30]} Bxe3 {[%emt 0:05:30] The position is equal.} 9. Nxe3 {[%emt 0:00:30]} Na5 {[%emt 0:00:30]} 10. Bb3 {[%emt 0:01:30]} Nxb3 {[%emt 0:00:30]} 11. axb3 {[%emt 0:00:00] [#]} Be6 $146 {[%emt 0:02:30]} ({Predecessor:} 11... O-O) 12. Qd2 {[%emt 0:11:00]} c5 {[%emt 0:03:30]} 13. b4 {[%emt 0:00:30]} Rc8 {[%emt 0:11:30]} 14. bxc5 {[%emt 0:11:30]} Rxc5 {[%emt 0:00:30]} 15. O-O {[%emt 0:01:30]} O-O {[%emt 0:01:30]} 16. c4 {[%emt 0:01:30]} Rc7 {[%emt 0:02:30]} 17. Qb4 {[%emt 0:05:30]} (17. Rfd1 $14) 17... Nh5 $1 $11 {[%emt 0:03:30]} 18. d4 {[%emt 0:03:30]} Nf4 {[%emt 0:07:30]} 19. Rad1 {[%emt 0:07:30]} exd4 {[%emt 0:04:30]} 20. Nxd4 {[%emt 0:01:30]} Qg5 {[%emt 0:00:30]} (20... Bxh3 $1 $11 21. gxh3 Qg5+ 22. Kh1 Qh5) 21. Qxd6 $16 {[%emt 0:07:30]} Rxc4 {[%emt 0:16:30] Threatens to win with ...Nxh3+.} 22. h4 $36 {[%emt 0:04:30][%mdl 2048] Black is under strong pressure.} ({But not} 22. Nxe6 fxe6 23. Kh2 Rxe4 $15) 22... Qxh4 {[%emt 0:06:30][%cal Oc4d4] Hoping for ...Rxd4!} 23. Nxc4 {[%emt 0:03:22]} Bxc4 {[%emt 0:01:30] [#]} 24. Rfe1 $1 {[%emt 0:02:51] Strongly threatening g3.} ({Reject} 24. g3 $6 Nh3+ 25. Kh2 Qh5 $11) 24... Qg4 {[%emt 0:03:30][%csl Gf4][%cal Rg4g2]} (24... Rd8 $2 25. Qc7 (25. g3 Rxd6 26. gxh4 Nd3 $11) 25... b5 26. g3 Nh3+ 27. Kg2 $18) 25. g3 {[%emt 0:02:04] Dancing on a razor blade.} Nd3 {[%emt 0:00:30][%mdl 8192] [#]} (25... Nh3+ $16 {is more resistant.} 26. Kg2 Ng5) 26. Re2 $2 {[%emt 0:04:33] Weighted Error Value: White=0.05 (flawless) /Black=0.29 (precise)} ({White must play} 26. Nf5 $1 $18) 1/2-1/2